[Event "Uppsala GM 2019"]
[Site "Uppsala"]
[Date "2019.10.25"]
[Round "1.1"]
[White "Kovalev, Andrei"]
[Black "Peng, Li Min"]
[Result "1/2-1/2"]
[ECO "C01"]
[WhiteElo "2511"]
[BlackElo "2454"]
[Annotator "RC"]
[PlyCount "99"]
[EventDate "2019.10.25"]
[EventType "tourn"]
[EventCountry "SWE"]
[SourceTitle "playchess.com"]
[Source "ChessBase"]
[SourceQuality "1"]
[TimeControl "5400+30"]

1. e4 {[%emt 0:00:00]} e6 {[%emt 0:00:06]} 2. d4 {[%emt 0:00:20]} d5 {[%emt 0:00:06]} 3. exd5 {[%emt 0:00:20]} exd5 {[%emt 0:00:08]} 4. Nf3 {[%emt 0:00:05]} Bd6 {[%emt 0:00:06]} 5. c4 {[%emt 0:00:03]} Nf6 {[%emt 0:00:04]} 6. Nc3 {[%emt 0:00:04]} O-O {[%emt 0:00:04]} 7. cxd5 {[%emt 0:00:34]} Nbd7 {[%emt 0:00:09]} 8. Bg5 {[%emt 0:02:43]} Nb6 {[%emt 0:03:25]} 9. Be2 {[%emt 0:00:33]} Be7 {[%emt 0:00:22]} 10. Bxf6 {[%emt 0:05:52]} Bxf6 {[%emt 0:00:08]} 11. Qb3 {[%emt 0:00:07]} a5 {[%emt 0:00:01]} 12. a4 {[%emt 0:04:15]} Qe7 {[%emt 0:00:05]} 13. O-O {[%emt 0:03:42]} Bf5 {[%emt 0:21:27]} 14. Rac1 {[%emt 0:08:09]} Qb4 {[%emt 0:02:40]} 15. Qxb4 {[%emt 0:06:22]} axb4 {[%emt 0:00:04]} 16. Nb5 {[%emt 0:00:03]} Nxd5 {[%emt 0:00:06]} 17. Nxc7 {[%emt 0:05:03]} Nf4 {[%emt 0:00:03]} 18. Bc4 {[%emt 0:05:41]} Rxa4 {[%emt 0:05:08]} 19. Rfe1 {[%emt 0:05:39]} b3 {[%emt 0:08:39]} 20. Rc3 {[%emt 0:11:41]} Bd8 {[%emt 0:12:25]} 21. Bxb3 {[%emt 0:10:29]} Rb4 {[%emt 0:01:00]} 22. Bc2 {[%emt 0:02:52]} Bg4 {[%emt 0:02:54]} 23. g3 {[%emt 0:11:13]} Bxc7 {[%emt 0:02:58]} 24. gxf4 {[%emt 0:00:07]} Bxf4 {[%emt 0:00:08]} 25. Re4 {[%emt 0:00:52]} Bxf3 {[%emt 0:00:22]} 26. Rxf4 {[%emt 0:04:49]} Bd5 {[%emt 0:00:37]} 27. Be4 {[%emt 0:00:25]} Bxe4 {[%emt 0:02:16]} 28. Rxe4 {[%emt 0:00:01]} Rxb2 {[%emt 0:00:19]} 29. Rc7 {[%emt 0:00:37]} b5 {[%emt 0:01:39]} 30. Rb7 {[%emt 0:00:34]} b4 {[%emt 0:03:49]} 31. Kg2 {[%emt 0:00:34]} b3 {[%emt 0:01:22]} 32. Re3 {[%emt 0:00:23]} Rd2 {[%emt 0:00:12]} 33. Rexb3 {[%emt 0:00:10]} Rxd4 {[%emt 0:00:08]} 34. Rb8 {[%emt 0:00:02]} g5 {[%emt 0:00:34]} 35. Rxf8+ {[%emt 0:00:09]} Kxf8 {[%emt 0:00:03]} 36. h3 {[%emt 0:00:16]} Kg7 {[%emt 0:00:05]} 37. Rb6 {[%emt 0:00:07]} f6 {[%emt 0:00:04]} 38. Rb7+ {[%emt 0:00:23]} Kg6 {[%emt 0:00:04]} 39. Ra7 {[%emt 0:00:06]} h5 {[%emt 0:00:09]} 40. Ra8 {[%emt 0:00:52]} Kf5 {[%emt 0:00:31]} 41. Ra6 {[%emt 0:00:48]} Ke5 {[%emt 0:00:22]} 42. Ra5+ {[%emt 0:01:09]} Kf4 {[%emt 0:02:21]} 43. Ra6 {[%emt 0:00:07]} f5 {[%emt 0:00:12]} 44. Rh6 {[%emt 0:00:07]} h4 {[%emt 0:00:13]} 45. Rh8 {[%emt 0:00:20]} Rd3 {[%emt 0:01:08]} 46. Rh5 {[%emt 0:02:09]} Rd6 {[%emt 0:00:13]} 47. Rh8 {[%emt 0:00:06]} Ke5 {[%emt 0:00:06]} 48. Rg8 {[%emt 0:00:23]} Kf6 {[%emt 0:00:08]} 49. Rf8+ {[%emt 0:00:09]} Kg6 {[%emt 0:00:06]} 50. Rg8+ {[%emt 0:00:21]} 1/2-1/2

[Event "Uppsala GM 2019"]
[Site "Uppsala"]
[Date "2019.10.25"]
[Round "1.4"]
[White "Ernst, Thomas"]
[Black "Kenneskog, Theodor"]
[Result "1/2-1/2"]
[ECO "D97"]
[WhiteElo "2328"]
[BlackElo "2278"]
[Annotator "RC"]
[PlyCount "55"]
[EventDate "2019.10.25"]
[EventType "tourn"]
[EventCountry "SWE"]
[SourceTitle "playchess.com"]
[Source "ChessBase"]
[SourceQuality "1"]
[TimeControl "5400+30"]

1. d4 {[%emt 0:00:00]} Nf6 {[%emt 0:00:00]} 2. c4 {[%emt 0:00:30]} g6 {[%emt 0:00:30]} 3. Nc3 {[%emt 1:31:00]} d5 4. Nf3 Bg7 5. Qb3 dxc4 6. Qxc4 O-O 7. e4 a6 8. Be2 b5 9. Qb3 c5 10. dxc5 Be6 11. Qc2 Nbd7 12. Be3 Rc8 13. Rd1 b4 14. Na4 Qa5 15. b3 Ng4 16. Bd4 Bxd4 17. Nxd4 {[%emt 0:00:00]} Nxc5 {[%emt 0:07:30]} 18. Nxe6 {[%emt 0:00:00]} Nxe6 {[%emt 0:00:30]} 19. Qb2 {[%emt 0:00:00]} Nf6 {[%emt 0:00:30]} 20. f3 {[%emt 0:00:00]} Nc5 {[%emt 0:00:30]} 21. Nxc5 {[%emt 0:00:00]} Qxc5 {[%emt 0:00:30]} 22. Qd4 {[%emt 0:00:00]} Qxd4 {[%emt 0:00:30]} 23. Rxd4 {[%emt 0:00:00]} Rc1+ {[%emt 0:00:30]} 24. Rd1 {[%emt 0:00:00]} Rc2 {[%emt 0:00:30]} 25. Rd2 {[%emt 0:00:00]} Rc1+ {[%emt 0:00:30]} 26. Rd1 {[%emt 0:00:00]} Rc2 {[%emt 0:00:30]} 27. Rd2 {[%emt 0:00:00]} Rc1+ {[%emt 0:00:30]} 28. Rd1 {[%emt 0:00:00]} 1/2-1/2

[Event "Uppsala GM 2019"]
[Site "Uppsala"]
[Date "2019.10.26"]
[Round "2.2"]
[White "Ernst, Thomas"]
[Black "Naumkin, Igor"]
[Result "1-0"]
[ECO "C96"]
[WhiteElo "2328"]
[BlackElo "2385"]
[Annotator "NA"]
[PlyCount "111"]
[EventDate "2019.10.25"]
[EventType "tourn"]
[EventCountry "SWE"]
[SourceTitle "playchess.com"]
[Source "ChessBase"]
[SourceQuality "1"]
[TimeControl "5400+30"]

{[%evp 8,76,30,19,17,20,42,27,39,31,28,23,34,14,24,30,22,25,29,18,27,12,31,11,8,14,12,3,23,8,21,26,19,51,50,40,32767,33,37,36,55,35,60,100,84,79,79,101,135,137,154,196,155,186,32767,32767,32767,32767,32767,32767,32767,298,288,32767,32767,200,369,32767,339,461,671]} 1. e4 {[%emt 0:00:00]} e5 {[%emt 0:16:44]} 2. Nf3 {[%emt 0:00:00]} Nc6 {[%emt 0:00:07]} 3. Bb5 {[%emt 0:00:18]} a6 {[%emt 0:00:11]} 4. Ba4 {[%emt 0:00:09]} Nf6 {[%emt 0:00:03]} 5. O-O {[%emt 0:00:14]} Be7 {[%emt 0:00:10]} 6. Re1 {[%emt 0:00:14]} b5 {[%emt 0:00:17]} 7. Bb3 {[%emt 0:00:09]} d6 {[%emt 0:00:14]} 8. c3 {[%emt 0:00:14]} O-O {[%emt 0:00:10]} 9. h3 {[%emt 0:00:13]} Na5 {[%emt 0:00:08]} 10. Bc2 {[%emt 0:00:13]} c5 {[%emt 0:00:08]} 11. d4 {[%emt 0:00:26]} Nd7 {[%emt 0:00:22]} 12. Nbd2 {[%emt 0:01:17]} exd4 {[%emt 0:00:29]} 13. cxd4 {[%emt 0:00:09]} Nc6 {[%emt 0:00:09]} 14. d5 {[%emt 0:01:07]} Nce5 {[%emt 0:00:21]} 15. Nxe5 {[%emt 0:00:33]} Nxe5 {[%emt 0:00:11]} 16. a4 {[%emt 0:00:44]} Rb8 {[%emt 0:00:42]} 17. axb5 {[%emt 0:00:51]} axb5 {[%emt 0:00:06]} 18. f4 {[%emt 0:00:14]} Ng6 {[%emt 0:00:33]} 19. Nf3 {[%emt 0:00:12]} Bb7 {[%emt 0:03:41]} 20. f5 {[%emt 0:05:54]} Ne5 {[%emt 0:02:28]} 21. Nxe5 {[%emt 0:00:12]} dxe5 {[%emt 0:00:07]} 22. Be3 {[%emt 0:03:33]} c4 {[%emt 0:01:12]} 23. Qd2 {[%emt 0:11:06]} Qc7 {[%emt 0:08:32]} 24. Red1 {[%emt 0:02:46]} Bc5 {[%emt 0:03:36] [#]} 25. f6 $1 {[%emt 0:05:18]} gxf6 {[%emt 0:03:59]} 26. Rf1 {[%emt 0:04:40]} f5 {[%emt 0:02:48]} 27. Rxf5 {[%emt 0:01:15]} f6 {[%emt 0:00:52]} 28. Raf1 {[%emt 0:04:04]} Bxe3+ {[%emt 0:15:01]} 29. Qxe3 {[%emt 0:00:10]} Qg7 {[%emt 0:01:01]} 30. R1f3 {[%emt 0:08:02]} Kh8 {[%emt 0:02:19]} 31. Qf2 {[%emt 0:00:55]} b4 {[%emt 0:02:33]} 32. Rxf6 {[%emt 0:00:35]} Rxf6 {[%emt 0:00:16]} 33. Rxf6 {[%emt 0:00:06]} b3 {[%emt 0:00:38]} 34. Bb1 {[%emt 0:27:10]} Kg8 {[%emt 0:06:35]} 35. Qf5 {[%emt 0:02:08]} Re8 {[%emt 0:04:21]} 36. Re6 {[%emt 0:00:21]} Rxe6 $2 {[%emt 0:05:54]} (36... Rf8 37. Qxe5 Qxe5 38. Rxe5 Ra8) 37. Qxe6+ {[%emt 0:00:08]} Kf8 {[%emt 0:01:18]} 38. d6 {[%emt 0:01:22]} Qg5 $18 {[%emt 0:04:02]} 39. Qxc4 {[%emt 0:03:47]} Qe3+ {[%emt 0:01:31]} 40. Kf1 {[%emt 0:06:02]} Qb6 {[%emt 0:05:27]} 41. Bd3 {[%emt 0:00:49]} Qxd6 {[%emt 0:00:31]} 42. Qxb3 {[%emt 0:00:14]} Qf6+ {[%emt 0:01:24]} 43. Ke2 {[%emt 0:01:14]} Bc6 {[%emt 0:01:11]} 44. Qb8+ {[%emt 0:00:33]} Kg7 {[%emt 0:00:15]} 45. Qa7+ {[%emt 0:01:14]} Kh6 {[%emt 0:01:23]} 46. Qe3+ {[%emt 0:01:02]} Kg7 {[%emt 0:00:08]} 47. Qc5 {[%emt 0:00:54]} Be8 {[%emt 0:00:34]} 48. b4 {[%emt 0:02:33]} Bh5+ {[%emt 0:00:34]} 49. g4 {[%emt 0:01:50]} Bg6 {[%emt 0:00:28]} 50. b5 {[%emt 0:01:23]} Qf4 {[%emt 0:00:47]} 51. Qe3 {[%emt 0:01:29]} Qh2+ {[%emt 0:00:26]} 52. Kd1 {[%emt 0:00:41]} Qb2 {[%emt 0:01:09]} 53. Qc5 {[%emt 0:00:55]} Qh2 {[%emt 0:03:36]} 54. b6 {[%emt 0:01:28]} Qxh3 {[%emt 0:00:41]} 55. Qxe5+ {[%emt 0:00:14]} Kh6 {[%emt 0:00:31]} 56. g5+ {[%emt 0:01:43]} 1-0

[Event "Uppsala GM 2019"]
[Site "Uppsala"]
[Date "2019.10.26"]
[Round "2.4"]
[White "Bogdanov, Egor"]
[Black "Rydstrom, Tom"]
[Result "1-0"]
[ECO "C28"]
[WhiteElo "2409"]
[BlackElo "2322"]
[Annotator "ChessBase"]
[PlyCount "33"]
[EventDate "2019.10.25"]
[EventType "tourn"]
[EventCountry "SWE"]
[SourceTitle "playchess.com"]
[Source "ChessBase"]
[SourceQuality "1"]
[TimeControl "5400+30"]

1. e4 {[%emt 0:14:54]} e5 {[%emt 0:00:04]} 2. Bc4 {[%emt 0:02:02]} Nf6 {[%emt 0:01:11]} 3. d3 {[%emt 0:00:20]} Nc6 {[%emt 0:03:24]} 4. Nc3 {[%emt 0:01:08]} Na5 {[%emt 0:02:16]} 5. Nge2 {[%emt 0:03:57]} d6 {[%emt 0:04:45]} 6. O-O {[%emt 0:00:32]} Be7 {[%emt 0:00:13]} 7. Bb5+ {[%emt 0:01:50]} c6 {[%emt 0:00:48]} 8. Ba4 {[%emt 0:00:06]} b5 {[%emt 0:00:17]} 9. Bb3 {[%emt 0:00:06]} O-O {[%emt 0:01:12]} 10. f4 {[%emt 0:15:18]} Ng4 {[%emt 0:13:16]} 11. Qe1 {[%emt 0:03:35]} Nxb3 {[%emt 0:00:24]} 12. axb3 {[%emt 0:00:04]} f5 {[%emt 0:24:48]} 13. h3 {[%emt 0:08:50]} Qb6+ {[%emt 0:04:16]} 14. Kh1 {[%emt 0:00:09]} Ne3 {[%emt 0:00:08]} 15. Bxe3 {[%emt 0:00:13]} Qxe3 {[%emt 0:00:03]} 16. d4 {[%emt 0:03:02]} exf4 {[%emt 0:03:34]} 17. Rf3 {[%emt 0:00:25]} 1-0

[Event "Uppsala GM 2019"]
[Site "Uppsala"]
[Date "2019.10.26"]
[Round "3.1"]
[White "Naumkin, Igor"]
[Black "Kovalev, Andrei"]
[Result "1/2-1/2"]
[ECO "E92"]
[WhiteElo "2385"]
[BlackElo "2511"]
[Annotator "ChessBase"]
[PlyCount "60"]
[EventDate "2019.10.25"]
[EventType "tourn"]
[EventCountry "SWE"]
[SourceTitle "playchess.com"]
[Source "ChessBase"]
[SourceQuality "1"]
[TimeControl "5400+30"]

1. d4 {[%emt 0:18:41]} Nf6 {[%emt 0:00:20]} 2. c4 {[%emt 0:01:21]} g6 {[%emt 0:00:28]} 3. Nc3 {[%emt 0:00:14]} Bg7 {[%emt 0:00:06]} 4. e4 {[%emt 0:00:05]} d6 {[%emt 0:00:04]} 5. Nf3 {[%emt 0:00:13]} O-O {[%emt 0:00:13]} 6. Be2 {[%emt 0:00:22]} e5 {[%emt 0:00:22]} 7. dxe5 {[%emt 0:00:58]} dxe5 {[%emt 0:00:20]} 8. Qxd8 {[%emt 0:00:18]} Rxd8 {[%emt 0:00:09]} 9. Bg5 {[%emt 0:00:35]} Re8 {[%emt 0:01:34]} 10. Nd5 {[%emt 0:00:31]} Nxd5 {[%emt 0:00:14]} 11. cxd5 {[%emt 0:00:10]} c6 {[%emt 0:00:14]} 12. Bc4 {[%emt 0:02:10]} b5 {[%emt 0:03:15]} 13. Bb3 {[%emt 0:04:07]} a5 {[%emt 0:00:16]} 14. a4 {[%emt 0:02:20]} bxa4 {[%emt 0:06:05]} 15. Bxa4 {[%emt 0:04:38]} Bd7 {[%emt 0:00:07]} 16. dxc6 {[%emt 0:00:39]} Bxc6 {[%emt 0:00:32]} 17. Bd2 {[%emt 0:02:20]} Bxa4 {[%emt 0:01:41]} 18. Rxa4 {[%emt 0:00:06]} Nc6 {[%emt 0:00:09]} 19. O-O {[%emt 0:03:32]} Rab8 {[%emt 0:02:16]} 20. Bxa5 {[%emt 0:04:58]} Rxb2 {[%emt 0:00:36]} 21. Bc3 {[%emt 0:02:35]} Rc2 {[%emt 0:00:09]} 22. Ba1 {[%emt 0:01:10]} Re2 {[%emt 0:00:58]} 23. Re1 {[%emt 0:01:12]} Rxe1+ {[%emt 0:00:04]} 24. Nxe1 {[%emt 0:00:05]} Rb8 {[%emt 0:01:14]} 25. Kf1 {[%emt 0:00:32]} Rb4 {[%emt 0:00:14]} 26. Rxb4 {[%emt 0:00:11]} Nxb4 {[%emt 0:00:05]} 27. Ke2 {[%emt 0:00:13]} f6 {[%emt 0:00:11]} 28. Bc3 {[%emt 0:00:17]} Nc6 {[%emt 0:00:12]} 29. f3 {[%emt 0:00:09]} h5 {[%emt 0:00:06]} 30. Nd3 {[%emt 0:00:12]} Kf7 {[%emt 0:00:03]} 1/2-1/2

[Event "Uppsala GM 2019"]
[Site "Uppsala"]
[Date "2019.10.26"]
[Round "3.2"]
[White "Kenneskog, Theodor"]
[Black "Wahlund, Max"]
[Result "1-0"]
[ECO "E11"]
[WhiteElo "2278"]
[BlackElo "2176"]
[Annotator "NA"]
[PlyCount "57"]
[EventDate "2019.10.25"]
[EventType "tourn"]
[EventCountry "SWE"]
[SourceTitle "playchess.com"]
[Source "ChessBase"]
[SourceQuality "1"]
[TimeControl "5400+30"]

1. d4 {[%emt 0:00:00]} Nf6 {[%emt 0:21:25]} 2. c4 {[%emt 0:00:00]} e6 {[%emt 0:00:08]} 3. Nf3 {[%emt 0:00:00]} Bb4+ {[%emt 0:00:36]} 4. Nbd2 {[%emt 0:00:00]} d5 {[%emt 0:00:26]} 5. a3 {[%emt 0:01:34]} Be7 {[%emt 0:00:12]} 6. e3 {[%emt 0:00:56]} O-O {[%emt 0:00:07]} 7. b3 {[%emt 0:01:20]} c5 {[%emt 0:00:37]} 8. Bb2 {[%emt 0:00:23]} Nc6 {[%emt 0:00:26]} 9. Bd3 {[%emt 0:00:31]} b6 {[%emt 0:01:34]} 10. h4 {[%emt 0:05:18]} Bb7 {[%emt 0:02:53]} 11. cxd5 {[%emt 0:00:53]} exd5 {[%emt 0:02:54]} 12. Qb1 {[%emt 0:13:21]} Re8 {[%emt 0:04:25]} 13. Kf1 {[%emt 0:06:12]} h5 {[%emt 0:01:59]} 14. Ng5 {[%emt 0:02:34]} cxd4 {[%emt 0:02:05]} 15. exd4 {[%emt 0:00:07]} Qc8 {[%emt 0:05:47]} 16. Bf5 {[%emt 0:03:55]} Ba6+ {[%emt 0:00:08]} 17. Kg1 {[%emt 0:00:02]} Qc7 {[%emt 0:00:21]} 18. Bh7+ {[%emt 0:08:37]} Kf8 {[%emt 0:00:18]} 19. Bg6 {[%emt 0:00:50]} Ng4 {[%emt 0:06:27]} 20. Nh7+ {[%emt 0:11:11]} Kg8 {[%emt 0:00:16]} 21. Bxh5 {[%emt 0:00:07]} Qf4 {[%emt 0:01:37]} 22. Nf3 {[%emt 0:01:17]} Be2 {[%emt 0:05:34]} 23. Bc1 {[%emt 0:12:56]} Qe4 {[%emt 0:00:22]} 24. Bxf7+ {[%emt 0:00:14]} Kxh7 {[%emt 0:02:40]} 25. Ng5+ {[%emt 0:00:07]} Bxg5 {[%emt 0:00:05]} 26. hxg5+ {[%emt 0:00:03]} Nh6 {[%emt 0:00:14]} 27. g6+ {[%emt 0:09:19]} Kh8 {[%emt 0:00:04]} 28. Bxh6 {[%emt 0:00:05]} gxh6 {[%emt 0:00:34]} 29. Qc1 {[%emt 0:00:03]} 1-0

[Event "Uppsala GM 2019"]
[Site "Uppsala"]
[Date "2019.10.26"]
[Round "3.4"]
[White "Pavlov, Sergey"]
[Black "Peng, Li Min"]
[Result "1/2-1/2"]
[ECO "E04"]
[WhiteElo "2485"]
[BlackElo "2454"]
[Annotator "ChessBase"]
[PlyCount "60"]
[EventDate "2019.10.25"]
[EventType "tourn"]
[EventCountry "SWE"]
[SourceTitle "playchess.com"]
[Source "ChessBase"]
[SourceQuality "1"]
[TimeControl "5400+30"]

1. d4 {[%emt 0:00:00]} Nf6 {[%emt 0:05:01]} 2. c4 {[%emt 0:00:04]} e6 {[%emt 0:00:05]} 3. Nf3 {[%emt 0:00:31]} d5 {[%emt 0:00:07]} 4. g3 {[%emt 0:00:20]} dxc4 {[%emt 0:00:06]} 5. Bg2 {[%emt 0:00:16]} c5 {[%emt 0:00:12]} 6. O-O {[%emt 0:00:35]} Nc6 {[%emt 0:00:10]} 7. dxc5 {[%emt 0:00:53]} Qxd1 {[%emt 0:00:08]} 8. Rxd1 {[%emt 0:00:08]} Bxc5 {[%emt 0:00:03]} 9. Nbd2 {[%emt 0:00:40]} c3 {[%emt 0:00:21]} 10. bxc3 {[%emt 0:00:19]} O-O {[%emt 0:00:16]} 11. Nb3 {[%emt 0:00:25]} Be7 {[%emt 0:00:38]} 12. Nfd4 {[%emt 0:00:36]} Bd7 {[%emt 0:01:26]} 13. Nb5 {[%emt 0:01:50]} Rac8 {[%emt 0:02:19]} 14. Ba3 {[%emt 0:03:44]} Bxa3 {[%emt 0:00:05]} 15. Nxa3 {[%emt 0:00:05]} Ne5 {[%emt 0:00:04]} 16. Bxb7 {[%emt 0:01:01]} Rxc3 {[%emt 0:00:04]} 17. Rac1 {[%emt 0:00:32]} Rxc1 {[%emt 0:00:10]} 18. Rxc1 {[%emt 0:00:11]} Rb8 {[%emt 0:00:11]} 19. Na5 {[%emt 0:00:34]} Kf8 {[%emt 0:00:40]} 20. Rc5 {[%emt 0:01:10]} Ng6 {[%emt 0:00:08]} 21. N3c4 {[%emt 0:00:39]} Ne8 {[%emt 0:01:29]} 22. e4 {[%emt 0:00:29]} e5 {[%emt 0:00:05]} 23. Nxe5 {[%emt 0:01:57]} Nxe5 {[%emt 0:00:07]} 24. Rxe5 {[%emt 0:00:07]} Nd6 {[%emt 0:00:20]} 25. Bc6 {[%emt 0:00:44]} Be6 {[%emt 0:00:13]} 26. Nb3 {[%emt 0:01:13]} Bxb3 {[%emt 0:00:14]} 27. axb3 {[%emt 0:00:45]} Rxb3 {[%emt 0:00:05]} 28. Rd5 {[%emt 0:01:09]} Ke7 {[%emt 0:01:26]} 29. Ra5 {[%emt 0:00:38]} Nc8 {[%emt 0:00:07]} 30. Bd5 {[%emt 0:00:43]} Rc3 {[%emt 0:00:05]} 1/2-1/2

[Event "Uppsala GM 2019"]
[Site "Uppsala"]
[Date "2019.10.26"]
[Round "3.5"]
[White "Mirzoev, Emil"]
[Black "Bogdanov, Egor"]
[Result "0-1"]
[ECO "B06"]
[WhiteElo "2455"]
[BlackElo "2409"]
[Annotator "ChessBase"]
[PlyCount "80"]
[EventDate "2019.10.25"]
[EventType "tourn"]
[EventCountry "SWE"]
[SourceTitle "playchess.com"]
[Source "ChessBase"]
[SourceQuality "1"]
[TimeControl "5400+30"]

1. e4 {[%emt 0:18:18]} g6 {[%emt 0:02:54]} 2. d4 {[%emt 0:01:08]} Bg7 {[%emt 0:00:07]} 3. Nc3 {[%emt 0:00:00]} c5 {[%emt 0:00:30]} 4. dxc5 {[%emt 0:00:08]} Qa5 {[%emt 0:00:11]} 5. Bd2 {[%emt 0:00:12]} Qxc5 {[%emt 0:00:05]} 6. Nd5 {[%emt 0:00:21]} Na6 {[%emt 0:02:05]} 7. Bc3 {[%emt 0:01:33]} Bxc3+ {[%emt 0:01:23]} 8. Nxc3 {[%emt 0:01:13]} Nf6 {[%emt 0:00:05]} 9. Bxa6 {[%emt 1:11:37]} bxa6 {[%emt 1:27:10]} 10. Nf3 {[%emt 0:00:00]} Bb7 {[%emt 0:00:00]} 11. O-O {[%emt 0:01:00]} Nxe4 {[%emt 0:00:00]} 12. Nxe4 {[%emt 0:00:00]} Bxe4 {[%emt 0:00:00]} 13. Re1 {[%emt 0:00:00]} Bxf3 {[%emt 0:00:00]} 14. Qxf3 {[%emt 0:00:00]} O-O {[%emt 0:00:00]} 15. c3 {[%emt 0:00:00]} e6 {[%emt 0:00:00]} 16. Rad1 {[%emt 0:00:00]} d5 {[%emt 0:00:00]} 17. h4 {[%emt 0:00:00]} h5 {[%emt 0:00:00]} 18. Rd2 {[%emt 0:00:00]} Rad8 {[%emt 0:00:00]} 19. Re5 {[%emt 0:00:00]} Kg7 {[%emt 0:00:00]} 20. Qf4 {[%emt 0:00:00]} Qc4 {[%emt 0:00:00]} 21. Qxc4 {[%emt 0:00:00]} dxc4 {[%emt 0:06:00]} 22. Rxd8 {[%emt 0:00:00]} Rxd8 {[%emt 0:00:00]} 23. Rc5 {[%emt 0:00:00]} Rd1+ {[%emt 0:00:00]} 24. Kh2 {[%emt 0:00:00]} Rd2 {[%emt 0:00:00]} 25. Rxc4 {[%emt 0:00:00]} Rxb2 {[%emt 0:00:00]} 26. Ra4 {[%emt 0:00:00]} Rxf2 27. Rxa6 Rc2 {[%emt 0:00:00]} 28. Rxa7 {[%emt 0:00:00]} Rxc3 {[%emt 0:00:00]} 29. a4 {[%emt 0:00:00]} Ra3 {[%emt 0:00:00]} 30. a5 {[%emt 0:00:00]} e5 {[%emt 0:00:00]} 31. a6 {[%emt 0:00:00]} Kf6 {[%emt 0:00:00]} 32. Ra8 {[%emt 0:00:00]} Kf5 {[%emt 0:00:00]} 33. Ra7 {[%emt 0:00:00]} f6 {[%emt 0:00:00]} 34. Ra8 {[%emt 0:00:00]} e4 {[%emt 0:00:00]} 35. Ra7 {[%emt 0:12:00]} Kf4 {[%emt 0:00:00]} 36. Ra8 {[%emt 0:00:00]} f5 {[%emt 0:00:00]} 37. a7 {[%emt 0:00:00]} Ra1 {[%emt 0:00:00]} 38. Rg8 {[%emt 0:00:00]} Rxa7 {[%emt 0:00:00]} 39. Rxg6 {[%emt 0:00:00]} e3 {[%emt 0:00:00]} 40. Re6 {[%emt 0:00:00]} Ra4 {[%emt 0:00:00]} 0-1

[Event "Uppsala GM 2019"]
[Site "Uppsala"]
[Date "2019.10.27"]
[Round "4.1"]
[White "Kovalev, Andrei"]
[Black "Wahlund, Max"]
[Result "1-0"]
[ECO "C27"]
[WhiteElo "2511"]
[BlackElo "2176"]
[Annotator "ChessBase"]
[PlyCount "75"]
[EventDate "2019.10.25"]
[EventType "tourn"]
[EventCountry "SWE"]
[SourceTitle "playchess.com"]
[Source "ChessBase"]
[SourceQuality "1"]
[TimeControl "5400+30"]

1. e4 {[%emt 1:27:27]} e5 {[%emt 1:27:26]} 2. Nc3 {[%emt 0:00:29]} Nf6 {[%emt 0:00:29]} 3. Bc4 {[%emt 0:00:29]} Bb4 {[%emt 0:00:37]} 4. Nge2 {[%emt 0:00:30]} c6 {[%emt 0:00:34]} 5. O-O {[%emt 0:00:33]} d5 {[%emt 0:00:31]} 6. exd5 {[%emt 0:00:29]} cxd5 {[%emt 0:00:29]} 7. Bb5+ {[%emt 0:00:30]} Nc6 {[%emt 0:00:34]} 8. d4 {[%emt 0:00:29]} e4 {[%emt 0:00:33]} 9. Bg5 {[%emt 0:00:29]} a6 {[%emt 0:00:45]} 10. Bxf6 {[%emt 0:00:33]} Qxf6 {[%emt 0:00:39]} 11. Nxd5 {[%emt 0:00:29]} Qd6 {[%emt 0:00:30]} 12. Bxc6+ {[%emt 0:00:32]} bxc6 {[%emt 0:00:33]} 13. Nxb4 {[%emt 0:00:41]} Qxb4 {[%emt 0:00:29]} 14. Ng3 {[%emt 0:00:37]} Qxb2 {[%emt 0:00:46]} 15. Nxe4 {[%emt 0:00:30]} O-O {[%emt 0:00:38]} 16. Qd3 {[%emt 0:00:38]} Bf5 {[%emt 0:00:33]} 17. Nf6+ {[%emt 0:00:29]} gxf6 {[%emt 0:00:30]} 18. Qxf5 {[%emt 0:00:29]} Qxd4 {[%emt 0:00:30]} 19. Rad1 {[%emt 0:00:29]} Qe5 {[%emt 0:00:29]} 20. Qg4+ {[%emt 0:00:30]} Qg5 {[%emt 0:00:29]} 21. Qc4 {[%emt 0:00:29]} c5 {[%emt 0:00:58]} 22. Rd5 {[%emt 0:00:33]} Qg6 {[%emt 0:00:29]} 23. Rxc5 {[%emt 0:00:32]} Rfe8 {[%emt 0:00:39]} 24. Ra5 {[%emt 0:00:31]} Rec8 {[%emt 0:00:40]} 25. Rc5 {[%emt 0:00:32]} Re8 {[%emt 0:00:32]} 26. h4 {[%emt 0:00:41]} Re5 {[%emt 0:00:41]} 27. Rc8+ {[%emt 0:00:32]} Rxc8 {[%emt 0:00:29]} 28. Qxc8+ {[%emt 0:00:29]} Kg7 {[%emt 0:00:29]} 29. Qxa6 {[%emt 0:00:34]} Qxc2 {[%emt 0:00:29]} 30. g3 {[%emt 0:00:38]} Re2 {[%emt 0:00:35]} 31. a4 {[%emt 0:00:29]} Qa2 {[%emt 0:00:30]} 32. a5 {[%emt 0:00:29]} Re5 {[%emt 0:00:30]} 33. Qc8 {[%emt 0:00:41]} Qxa5 {[%emt 0:00:37]} 34. Qg4+ {[%emt 0:00:30]} Kh8 {[%emt 0:00:38]} 35. Kh2 {[%emt 0:00:30]} Qd2 {[%emt 0:00:32]} 36. Qf3 {[%emt 0:00:33]} Qd6 {[%emt 0:00:36]} 37. Ra1 {[%emt 0:00:33]} Qd8 {[%emt 0:00:36]} 38. Ra8 {[%emt 0:00:30]} 1-0